[Event "45th FIDE Olympiad 2024"]
[Site "Budapest"]
[Date "2024.09.12"]
[Round "2.28"]
[White "Urkedal, Frode Olav Olsen"]
[Black "Noritsyn, Nikolay"]
[Result "1-0"]
[ECO "D20"]
[WhiteElo "2546"]
[BlackElo "2451"]
[Annotator "TA"]
[PlyCount "87"]
[EventDate "2024.09.05"]
[EventType "team-tourn"]
[EventCountry "HUN"]
[SourceTitle "playchess.com"]
[Source "ChessBase"]
[SourceQuality "1"]
[WhiteTeam "Norway"]
[BlackTeam "Canada"]
[WhiteTeamCountry "NOR"]
[BlackTeamCountry "CAN"]
[TimeControl "40/5400+30:1800+30"]

{[%evp 14,87,14,22,6,-21,-16,-10,51,50,39,0,0,0,0,0,0,0,4,0,16,0,20,17,225,236,227,225,231,250,243,210,220,209,209,198,207,190,196,194,189,170,449,450,439,442,558,448,519,383,597,604,577,473,453,462,476,473,443,480,460,468,598,604,662,639,674,1043,1032,970,29984,29985,29995,29996,29996,29997]} 1. d4 {[%emt 0:00:02]} d5 {[%emt 0:00:11]} 2. c4 {[%emt 0:00:06]} dxc4 {[%emt 0:00:10]} 3. e4 {[%emt 0:00:15]} e5 {[%emt 0:00:08]} 4. Nf3 {[%emt 0:00:06][%cal Bg1f3,Bf3d4,Bd4b5][%mdl 32]} Bb4+ {[%emt 0:00:09]} 5. Nc3 {[%emt 0:01:50]} exd4 {[%emt 0:00:15]} 6. Qxd4 {[%emt 0:00:24]} Qxd4 {[%emt 0:00:46]} 7. Nxd4 {[%emt 0:00:06]} Nf6 {[%emt 0:00:11]} 8. f3 {[%emt 0:00:37][%cal Oc1f4]} Bc5 {[%emt 0:01:02]} 9. Ndb5 {[%emt 0:04:30]} Na6 {[%emt 0:02:06]} 10. Bf4 {[%emt 0:03:02]} Be6 {[%emt 0:05:28]} ({Better is} 10... c6 $1 $11 11. Nd6+ Bxd6 (11... Ke7 12. O-O-O $14) 12. Bxd6 Be6) 11. Bxc7 $14 {[%emt 0:08:08]} Ke7 {[%emt 0:16:38]} 12. O-O-O {[%emt 0:28:00]} Nxc7 {[%emt 0:02:07]} 13. Nxc7 {[%emt 0:00:06]} Rac8 {[%emt 0:00:06]} 14. Nxe6 {[%emt 0:00:06]} fxe6 {[%emt 0:00:04]} 15. Kc2 {[%emt 0:00:35]} Be3 {[%emt 0:04:25]} 16. g3 {[%emt 0:03:30]} Rhf8 {[%emt 0:14:15]} 17. Bh3 {[%emt 0:04:28]} Nd7 {[%emt 0:14:14]} 18. f4 {[%emt 0:00:26][%cal Oh3e6,Bf3f4,Bf4f5][%mdl 32]} g5 $2 {[%emt 0:00:46] [#] This costs Black the game.} (18... Nc5 $11 {and Black stays safe.}) 19. Bxe6 $1 $18 {[%emt 0:00:27][%mdl 512]} Kxe6 {[%emt 0:02:14]} 20. f5+ {[%emt 0:00:05]} Ke7 {[%emt 0:00:40] Threatens to win with ...Nb6.} 21. Nd5+ {[%emt 0:00:08]} Kf7 {[%emt 0:00:26]} 22. Nxe3 {[%emt 0:00:07]} Ne5 {[%emt 0:00:43]} 23. Rd6 {[%emt 0:03:32]} Rfe8 {[%emt 0:02:45]} 24. h4 {[%emt 0:00:09]} g4 {[%emt 0:02:30]} 25. h5 {[%emt 0:02:26]} b5 {[%emt 0:06:41]} 26. Rhd1 {[%emt 0:07:56]} Nd3 {[%emt 0:02:22]} 27. Rd7+ {[%emt 0:05:36]} Kf8 $2 {[%emt 0:05:46]} (27... Re7 28. Rxe7+ Kxe7) 28. Rxh7 {[%emt 0:02:28]} (28. Rxa7 Rxe4 29. Nd5 (29. Rxh7 $2 Kg8 $19) 29... Re2+ 30. Rd2 Re1 $11) 28... Kg8 {[%emt 0:00:16] Repels Nxg4} 29. Rxa7 {[%emt 0:00:19]} (29. Rh6 Rxe4 30. Rg6+ Kh8 31. Nxg4 Re2+ 32. Rd2 Re1 $14 (32... Rxd2+ $2 33. Kxd2 Rd8 34. Rh6+ Kg8 35. Ke3 $18)) 29... Rxe4 {[%emt 0:00:20]} 30. Nd5 {[%emt 0:00:11] Strongly threatening Nf6+.} Re2+ {[%emt 0:01:00]} 31. Rd2 {[%emt 0:01:48]} Re1 {[%emt 0:01:40]} (31... Ne1+ {keeps fighting.} 32. Kc3 (32. Kd1 Rxd2+ 33. Kxd2 Rd8 $18) 32... b4+ 33. Kxb4 Rxd2 34. Ne7+ Kh7 35. Nxc8+ Kh6 36. Ra6+ (36. Kxc4 Rc2+ 37. Kd5 Rxc8 $16) 36... Kxh5) 32. Rh2 {[%emt 0:05:34] And now h6 would win.} Rd8 {[%emt 0:11:28] [#]} 33. h6 $1 {[%emt 0:00:39] aiming for Nf6+.} Kh8 {[%emt 0:01:20]} ({Weaker is} 33... Rxd5 34. h7+ Kh8 35. Ra8+) (33... Rc1+ 34. Kd2 Rb1 (34... Rxd5 35. h7+ Kh8 36. Ra8+) 35. Nf6+ Kf8 36. Ke3 (36. Nxg4 Nf2+ 37. Kc2 Rdd1 $18) 36... Re1+ 37. Re2) 34. Nf6 {[%emt 0:07:52][%csl Gf6][%cal Ra7h7]} Nb4+ {[%emt 0:00:11]} 35. Kc3 {[%emt 0:00:07][%csl Gf6][%cal Ra7h7]} Nd5+ {[%emt 0:00:06]} 36. Nxd5 {[%emt 0:00:06]} Rxd5 {[%emt 0:00:03][%mdl 4096] Endgame. KRR-KRR} 37. f6 {[%emt 0:04:41]} Rd8 {[%emt 0:03:41] Repels Ra8} 38. Kb4 {[%emt 0:02:06]} Rf1 {[%emt 0:01:11]} 39. Rf7 {[%emt 0:00:44]} Rc8 {[%emt 0:00:53]} 40. Re2 {[%emt 0:01:34][%cal Oe2e7] Intending Ree7! and mate.} Rh1 {[%emt 0:00:22]} 41. Rfe7 {[%emt 0:30:31] Re8+ would kill now.} Rf8 {[%emt 0:30:50]} 42. Re8 {[%emt 0:00:06] White mates.} Kg8 {[%emt 0:00:10]} 43. R2e7 {[%emt 0:00:05]} Rxe8 {[%emt 0:00:27]} 44. f7+ {[%emt 0:00:06] Weighted Error Value: White=0.10 (very precise) /Black=0.46.  Loses game:     	---       	Black=1      Mistake:       	---       	Black=3      Inaccurate:     	White=2     	---        OK:         	White=18    	Black=11     Best:        	White=3     	Black=4      Brilliant:      	White=1     	---} 1-0

[Event "45th FIDE Olympiad 2024"]
[Site "Budapest"]
[Date "2024.09.12"]
[Round "2.28"]
[White "Al-Kuwari, Turki"]
[Black "Mudasir, Iqbal"]
[Result "0-1"]
[ECO "B31"]
[WhiteElo "1577"]
[BlackElo "2055"]
[Annotator "NA"]
[PlyCount "40"]
[EventDate "2024.09.05"]
[EventType "team-tourn"]
[EventCountry "HUN"]
[SourceTitle "playchess.com"]
[Source "ChessBase"]
[SourceQuality "1"]
[WhiteTeam "Qatar"]
[BlackTeam "Pakistan"]
[WhiteTeamCountry "QAT"]
[BlackTeamCountry "PAK"]
[TimeControl "40/5400+30:1800+30"]

1. e4 c5 2. Nf3 Nc6 3. Bb5 g6 4. O-O Bg7 5. c3 e5 6. d4 exd4 7. cxd4 Nxd4 8. Nxd4 Bxd4 9. Nc3 Ne7 10. Bg5 h6 11. Bh4 O-O 12. Qd2 g5 13. Bg3 d5 14. h4 a6 15. Bd3 dxe4 16. Bxe4 f5 17. Bc2 f4 18. Bb3+ Kg7 19. Bh2 Nf5 20. Ne2 Bxf2+ 0-1

[Event "45th FIDE Olympiad 2024"]
[Site "Budapest"]
[Date "2024.09.12"]
[Round "2.29"]
[White "Kollars, Dmitrij"]
[Black "Quizon, Daniel"]
[Result "0-1"]
[ECO "B66"]
[WhiteElo "2659"]
[BlackElo "2490"]
[Annotator "TA"]
[PlyCount "108"]
[EventDate "2024.09.05"]
[EventType "team-tourn"]
[EventCountry "HUN"]
[SourceTitle "playchess.com"]
[Source "ChessBase"]
[SourceQuality "1"]
[WhiteTeam "Germany"]
[BlackTeam "Philippines"]
[WhiteTeamCountry "GER"]
[BlackTeamCountry "PHI"]
[TimeControl "40/5400+30:1800+30"]

{[%evp 13,108,16,33,13,19,17,37,23,35,39,59,64,72,73,98,87,97,97,109,104,180,129,154,137,173,163,174,168,173,185,166,197,195,193,219,220,209,194,203,192,202,211,208,209,219,219,208,56,42,61,64,42,47,13,19,21,20,8,8,-25,-26,-155,-157,-139,-151,-145,-146,-178,-175,-443,-477,-517,-504,-482,-504,-500,-495,-422,-374,-247,-247,-587,-477,-1459,-1441,-1345,-1147,-29973,-29974,-29975,-29975,-29975,-29976,-29981,-29982,-29987,-29988]} 1. e4 {[%emt 0:00:05]} c5 {[%emt 0:00:17]} 2. Nf3 {[%emt 0:00:06]} d6 {[%emt 0:01:46]} 3. d4 {[%emt 0:00:19]} cxd4 {[%emt 0:00:13]} 4. Nxd4 {[%emt 0:00:06]} Nf6 {[%emt 0:00:10]} 5. Nc3 {[%emt 0:00:06]} Nc6 {[%emt 0:02:15]} 6. Bg5 {[%emt 0:00:31]} e6 {[%emt 0:00:15]} 7. Qd2 {[%emt 0:00:55]} a6 {[%emt 0:02:30]} 8. Nxc6 {[%emt 0:00:52]} bxc6 {[%emt 0:00:13]} 9. O-O-O {[%emt 0:00:13][%cal Oe4e5] aiming for e5!} Be7 {[%emt 0:08:20]} 10. Bxf6 {[%emt 0:01:01] White is slightly better.} gxf6 {[%emt 0:00:34]} 11. Bc4 {[%emt 0:00:21]} Qa5 {[%emt 0:06:42]} 12. f4 {[%emt 0:01:14]} Rb8 {[%emt 0:00:33]} 13. Bb3 {[%emt 0:03:02]} Bd7 {[%emt 0:02:17]} 14. Kb1 {[%emt 0:10:22]} h5 {[%emt 0:04:22]} 15. Rhe1 {[%emt 0:06:29]} c5 {[%emt 0:09:23]} 16. f5 {[%emt 0:07:07]} Rb4 {[%emt 0:03:55]} (16... Qb6 $16) 17. fxe6 {[%emt 0:11:45]} (17. Qd3 $18) 17... fxe6 $16 {[%emt 0:00:13]} 18. a3 {[%emt 0:11:42]} Rd4 {[%emt 0:03:47]} 19. Qe3 {[%emt 0:01:16]} Qb6 {[%emt 0:04:39]} 20. Ne2 {[%emt 0:01:54]} Rxd1+ {[%emt 0:02:56]} 21. Rxd1 {[%emt 0:00:12]} Qb5 {[%emt 0:07:05]} 22. Nc3 {[%emt 0:01:03]} Qb7 {[%emt 0:09:25]} 23. Bc4 {[%emt 0:02:09]} Kf7 {[%emt 0:14:29]} 24. Qe2 {[%emt 0:01:25]} a5 {[%emt 0:00:54] [#]} 25. Nd5 $1 {[%emt 0:03:36][%mdl 512]} Qb8 {[%emt 0:03:19]} 26. Ne3 {[%emt 0:13:52]} Kf8 {[%emt 0:02:10]} 27. Qf3 {[%emt 0:05:36]} Ke8 {[%emt 0:04:21] [#]} 28. a4 $1 {[%emt 0:02:35][%mdl 512]} Qb7 {[%emt 0:00:33]} (28... Qc8 29. Qh3) 29. Rd3 {[%emt 0:05:30]} f5 {[%emt 0:03:44] [#]} 30. exf5 {[%emt 0:00:06]} (30. Rb3 $1 $18 {[%cal Rb3b7]} fxe4 31. Qg3 (31. Rxb7 exf3 32. gxf3 d5 $15)) 30... Qxf3 $14 {[%emt 0:00:04]} 31. gxf3 {[%emt 0:00:04]} exf5 {[%emt 0:00:12][%cal Of5f4]} 32. Bb5 {[%emt 0:00:07]} Kd8 $1 {[%emt 0:01:33]} 33. Bxd7 {[%emt 0:02:20]} Kxd7 {[%emt 0:00:01]} 34. Nxf5 {[%emt 0:00:06][%mdl 4096] Endgame. KRB-KRN} Rg8 {[%emt 0:00:41]} 35. Ne3 {[%emt 0:03:01]} Rg1+ {[%emt 0:01:09]} 36. Ka2 {[%emt 0:00:09]} Rh1 {[%emt 0:00:20]} 37. Rd2 {[%emt 0:05:46]} (37. c3 $11 {keeps the balance.}) 37... Bg5 $17 {[%emt 0:00:06]} 38. Re2 {[%emt 0:01:07]} Bxe3 {[%emt 0:00:13]} 39. Rxe3 {[%emt 0:00:01]} Rxh2 {[%emt 0:00:02] KR-KR} 40. Kb3 {[%emt 0:01:43]} Rf2 {[%emt 0:00:24] Hoping for ...h4.} 41. c3 $2 {[%emt 0:13:04]} (41. Re4) 41... h4 $19 {[%emt 0:02:12]} 42. Re4 {[%emt 0:05:01]} h3 {[%emt 0:00:03]} (42... Rxf3 43. Rxh4 Kc7 44. Rh7+ Kb6 45. Rd7 $11) 43. Rh4 {[%emt 0:00:13]} h2 {[%emt 0:11:08][%cal Od6d5] Threatens to win with ...d5!} (43... Rxf3 44. Rh7+ Kc6 45. Rh6 $17) 44. Kc4 {[%emt 0:05:18]} Rxb2 {[%emt 0:02:17]} ({Inferior is} 44... Rxf3 45. Rxh2 Kc6 46. Rh8 $11) 45. Rh6 {[%emt 0:00:33]} Kc6 {[%emt 0:00:54]} 46. f4 {[%emt 0:00:09]} Ra2 {[%emt 0:04:45]} 47. Kb3 {[%emt 0:00:04]} (47. Kd3) 47... Rf2 {[%emt 0:00:20][%cal Oc6d5] And now ...Kd5! would win.} 48. f5 {[%emt 0:00:38]} (48. Kc4 $142 Rxf4+ 49. Kd3 Rf3+ (49... Rxa4 $2 50. Rxh2 d5 51. Rh6+ Kb5 52. Rh5 $19) 50. Kd2 Rf2+ 51. Kd3) 48... Kd5 $1 {[%emt 0:01:22]} ({Not} 48... Rxf5 49. Rxh2 Rf8 50. Rh7 $15) 49. c4+ {[%emt 0:00:29]} Kd4 {[%emt 0:03:29]} 50. Rh4+ {[%emt 0:00:31]} Ke5 {[%emt 0:00:30] Black mates.} 51. Rh5 {[%emt 0:00:09]} Kf4 {[%emt 0:02:29]} (51... Rxf5 52. Rxh2 Rf3+ 53. Kb2 $17) 52. f6 {[%emt 0:00:09]} Kg3 {[%emt 0:00:15]} 53. Rg5+ {[%emt 0:00:17]} Kh4 {[%emt 0:00:15]} 54. Rg6 {[%emt 0:00:32]} Kh5 {[%emt 0:00:07] Black used his chance.   Weighted Error Value: White=0.51/Black=0.07 (flawless) .  Mistake:       	White=6     	Black=1      Inaccurate:     	White=2     	---        OK:         	White=21    	Black=18     Best:        	---       	Black=4      Strong:       	---       	Black=2} (54... h1=B 55. Rh6+ Kg5 56. Rxh1 $17) 0-1

[Event "45th FIDE Olympiad 2024"]
[Site "Budapest"]
[Date "2024.09.12"]
[Round "2.29"]
[White "Misambo, .J. Kilasa"]
[Black "Kao, Jamison Edrich"]
[Result "0-1"]
[ECO "E90"]
[WhiteElo "1959"]
[BlackElo "2125"]
[Annotator "NA"]
[PlyCount "100"]
[EventDate "2024.09.05"]
[EventType "team-tourn"]
[EventCountry "HUN"]
[SourceTitle "playchess.com"]
[Source "ChessBase"]
[SourceQuality "1"]
[WhiteTeam "Tanzania"]
[BlackTeam "Hong Kong, China"]
[WhiteTeamCountry "TAN"]
[TimeControl "40/5400+30:1800+30"]

1. d4 Nf6 2. c4 g6 3. Nf3 Bg7 4. Nc3 O-O 5. e4 d6 6. h3 e5 7. d5 a5 8. Be3 Na6 9. Bd3 c6 10. Qd2 cxd5 11. cxd5 Nc5 12. Bxc5 dxc5 13. Qe3 Qe7 14. Bc4 Bd7 15. a4 Ne8 16. g4 Nd6 17. Be2 Rac8 18. Nd2 c4 19. Qb6 f5 20. gxf5 gxf5 21. O-O-O fxe4 22. Ndxe4 Nxe4 23. Nxe4 Bxa4 24. Rdg1 c3 25. Nxc3 Qb4 26. Qe3 Qd4 27. Kb1 Bb3 28. Rg4 Rf4 29. Rhg1 Rxg4 30. Rxg4 Qxe3 31. fxe3 e4 32. Nxe4 h5 33. Nf6+ Kh8 34. Nxh5 Rc2 35. Nxg7 Rxe2 36. Kc1 Rc2+ 37. Kb1 Re2 38. Kc1 Bxd5 39. Nf5 Bb3 40. Rg3 Rc2+ 41. Kb1 Rf2 42. Kc1 Rxf5 43. e4 Rc5+ 44. Kd2 Rc2+ 45. Kd3 a4 46. Kd4 Rxb2 47. Ke5 a3 48. Rd3 a2 49. Rd8+ Kg7 50. Ra8 Rb1 0-1

[Event "45th FIDE Olympiad 2024"]
[Site "Budapest"]
[Date "2024.09.12"]
[Round "2.30"]
[White "Bersamina, Paulo"]
[Black "Bluebaum, Matthias"]
[Result "0-1"]
[ECO "B12"]
[WhiteElo "2425"]
[BlackElo "2640"]
[Annotator "TA"]
[PlyCount "118"]
[EventDate "2024.09.05"]
[EventType "team-tourn"]
[EventCountry "HUN"]
[SourceTitle "playchess.com"]
[Source "ChessBase"]
[SourceQuality "1"]
[WhiteTeam "Philippines"]
[BlackTeam "Germany"]
[WhiteTeamCountry "PHI"]
[BlackTeamCountry "GER"]
[TimeControl "40/5400+30:1800+30"]

{[%evp 23,118,0,0,0,0,0,0,0,0,0,12,-45,-54,-75,-75,-148,-161,-152,-165,-210,-79,-72,-85,-75,-67,-83,-77,-72,-66,-109,-33,-35,-32,-44,-3,-151,-72,-68,-64,-74,-83,-71,-64,-266,-174,-172,-158,-166,-168,-172,-182,-181,-166,-249,-229,-228,-237,-328,-321,-408,-411,-483,-480,-433,-433,-526,-364,-360,-368,-431,-432,-387,-391,-633,-623,-637,-650,-661,-667,-661,-633,-672,-669,-655,-655,-1250,-674,-6155,-6095,-5915,-642,-664,0,-6266,-5845,-5919,-626]} 1. e4 {[%emt 0:00:02]} c6 {[%emt 0:00:08]} 2. d4 {[%emt 0:01:28]} d5 {[%emt 0:00:07]} 3. e5 {[%emt 0:00:05]} Bf5 {[%emt 0:00:15]} 4. h4 {[%emt 0:00:13]} h5 {[%emt 0:00:10]} 5. Bd3 {[%emt 0:00:09]} Bxd3 {[%emt 0:00:10]} 6. Qxd3 {[%emt 0:00:05] B12: Caro-Kann: Advance Variation.} Qa5+ {[%emt 0:00:12]} 7. b4 {[%emt 0:01:37]} Qa6 {[%emt 0:00:37]} 8. e6 {[%emt 0:00:26]} Qxd3 {[%emt 0:00:53]} 9. cxd3 {[%emt 0:00:06]} fxe6 {[%emt 0:00:04]} 10. Nd2 {[%emt 0:00:14]} Nh6 {[%emt 0:01:48]} 11. Ndf3 {[%emt 0:02:51]} Nf5 {[%emt 0:01:17]} 12. Ne2 {[%emt 0:04:03]} g6 {[%emt 0:02:23]} 13. Nf4 {[%emt 0:11:21]} a5 $146 {[%emt 0:00:21]} ({Predecessor:} 13... Bg7 14. Nxe6 Na6 15. Rb1 Bf6 16. Be3 Rc8 17. Nc5 Nxc5 18. bxc5 Nxe3 19. fxe3 Rb8 {½-½ Edouard,R (2527)-Decuigniere,T (2396) FRA-chT Top 16 GpA 2023 (6.28)}) 14. Nxe6 {[%emt 0:07:01]} Kd7 $1 {[%emt 0:07:50]} 15. Nxf8+ {[%emt 0:24:54]} Rxf8 {[%emt 0:00:11]} 16. bxa5 {[%emt 0:00:07]} Rxa5 {[%emt 0:00:47]} 17. O-O {[%emt 0:01:10]} (17. a4 $11) 17... Ra4 $1 $15 {[%emt 0:09:22]} 18. Ne5+ {[%emt 0:10:08]} Kc8 {[%emt 0:10:43]} 19. Nxg6 {[%emt 0:15:14]} (19. Bg5 $142) 19... Rg8 $17 {[%emt 0:02:18]} 20. Nf4 {[%emt 0:01:00]} Nxd4 {[%emt 0:04:49]} 21. f3 {[%emt 0:03:41]} Nb3 {[%emt 0:05:48]} (21... Nd7 $19 {is more deadly.} 22. Bd2 Nf5) 22. axb3 $17 {[%emt 0:00:08]} Rxa1 {[%emt 0:00:03]} 23. Nxh5 {[%emt 0:00:06]} Na6 {[%emt 0:01:34]} 24. d4 {[%emt 0:01:24]} Nb4 {[%emt 0:06:16]} 25. Nf4 {[%emt 0:04:36]} Nc2 {[%emt 0:03:42]} 26. Ne2 {[%emt 0:00:14]} Rb1 {[%emt 0:01:28]} (26... Ra2 $17 {[%cal Oc2d4]} 27. Nc3 Ra1) 27. h5 {[%emt 0:03:56]} Rxb3 {[%emt 0:00:15]} 28. Kf2 {[%emt 0:00:18]} c5 {[%emt 0:06:24]} 29. Nf4 {[%emt 0:02:21]} (29. dxc5 $11 e5 30. h6) 29... Rh8 {[%emt 0:06:09]} ({Don't take} 29... cxd4 30. Rh1 $17) (29... Nxd4 $142 {Strongly threatening ...Rh8.} 30. Nxd5 Kd7) 30. dxc5 $17 {[%emt 0:01:08]} e5 {[%emt 0:00:15]} 31. Nxd5 {[%emt 0:00:34]} Rxh5 {[%emt 0:00:06]} 32. Nf6 {[%emt 0:00:54]} Rh8 {[%emt 0:01:30]} 33. g4 $2 {[%emt 0:02:02]} ({White should play} 33. Bg5 $15) 33... Nd4 {[%emt 0:00:50]} 34. Kg2 {[%emt 0:00:22]} Rc3 {[%emt 0:01:37]} 35. Ne4 {[%emt 0:00:42]} Rc2+ {[%emt 0:01:23]} 36. Bd2 {[%emt 0:00:39]} Nb3 {[%emt 0:00:11]} 37. Rf2 {[%emt 0:00:37]} Nxc5 {[%emt 0:00:45]} 38. Bc3 {[%emt 0:02:20]} (38. Nxc5 $142 Rxc5 39. Bg5) 38... Rxf2+ $19 {[%emt 0:00:59]} 39. Nxf2 {[%emt 0:00:04]} Re8 {[%emt 0:00:12]} 40. Kg3 {[%emt 0:00:49]} Kd7 {[%emt 0:02:53]} 41. g5 {[%emt 0:30:19]} Ke6 {[%emt 0:31:49]} 42. f4 {[%emt 0:00:00]} exf4+ {[%emt 0:00:00]} 43. Kg4 {[%emt 0:00:00]} Rc8 {[%emt 0:00:00]} 44. Bd4 {[%emt 0:00:00]} f3 {[%emt 0:00:00]} 45. Kxf3 {[%emt 0:00:00]} Kf5 {[%emt 0:00:00]} 46. Be3 {[%emt 0:00:00]} b5 {[%emt 0:00:00]} 47. Bd2 {[%emt 0:00:00]} Rd8 {[%emt 0:00:00]} 48. Bc3 $2 {[%emt 0:00:00]} (48. Ba5 Re8 49. Nd1) 48... Ne6 $19 {[%emt 0:00:00]} 49. g6 {[%emt 0:00:00]} Kxg6 {[%emt 0:00:00]} 50. Ke4 {[%emt 0:00:00]} Nc5+ {[%emt 0:00:00]} 51. Ke3 {[%emt 0:00:00]} Kf5 {[%emt 0:00:00]} 52. Bb4 {[%emt 0:00:00]} Ne6 {[%emt 0:00:00]} 53. Nd3 {[%emt 0:00:00]} Rg8 {[%emt 0:00:00]} 54. Bd6 {[%emt 0:00:00]} Rh8 {[%emt 0:00:00]} 55. Bb4 {[%emt 0:00:09]} Rh3+ {[%emt 0:00:00]} 56. Kd2 {[%emt 0:00:02]} Rf3 {[%emt 0:00:00]} (56... Nf4 $142 57. Nc5 Nd5) 57. Ne1 {[%emt 0:00:23]} Rh3 {[%emt 0:00:00]} (57... Rb3 $142 58. Nc2 Rh3) 58. Nd3 $1 $19 {[%emt 0:00:24]} Nf4 {[%emt 0:00:00]} 59. Nc5 {[%emt 0:01:43]} Rh2+ {[%emt 0:00:00]} (59... Nd5 $142 60. Ba5 b4) 0-1

[Event "45th FIDE Olympiad 2024"]
[Site "Budapest"]
[Date "2024.09.12"]
[Round "2.30"]
[White "Chan, Pui Yin Brandon"]
[Black "Veer, Gandhi"]
[Result "1-0"]
[ECO "D36"]
[WhiteElo "2016"]
[BlackElo "1792"]
[Annotator "NA"]
[PlyCount "83"]
[EventDate "2024.09.05"]
[EventType "team-tourn"]
[EventCountry "HUN"]
[SourceTitle "playchess.com"]
[Source "ChessBase"]
[SourceQuality "1"]
[WhiteTeam "Hong Kong, China"]
[BlackTeam "Tanzania"]
[BlackTeamCountry "TAN"]
[TimeControl "40/5400+30:1800+30"]

1. d4 d5 2. c4 e6 3. Nc3 Nf6 4. Bg5 Be7 5. cxd5 exd5 6. e3 c6 7. Bd3 h6 8. Bh4 O-O 9. Nge2 Re8 10. Qc2 Nbd7 11. O-O Nf8 12. Rad1 Bg4 13. f3 Be6 14. h3 Nh5 15. Bxe7 Qxe7 16. e4 dxe4 17. fxe4 Rad8 18. e5 g6 19. Ne4 Bd5 20. Nd6 Rxd6 21. exd6 Qxd6 22. Nc3 Be6 23. Qf2 Rd8 24. Bc2 Ng3 25. Rfe1 h5 26. a3 Bf5 27. Bxf5 Nxf5 28. d5 cxd5 29. Rxd5 Qb8 30. Rxd8 Qxd8 31. Qxa7 Ne6 32. Qf2 Qg5 33. Ne4 Qd8 34. Nc5 Ng5 35. Ne4 Ne6 36. Rf1 Qd3 37. Nf6+ Kf8 38. Nxh5 Ned4 39. Nf4 Qb5 40. g4 Ng3 41. Qxg3 g5 42. Qe3 1-0

[Event "45th FIDE Olympiad 2024"]
[Site "Budapest"]
[Date "2024.09.12"]
[Round "2.31"]
[White "Donchenko, Alexander"]
[Black "Gomez, John Paul"]
[Result "1-0"]
[ECO "A16"]
[WhiteElo "2638"]
[BlackElo "2408"]
[Annotator "TA"]
[PlyCount "43"]
[EventDate "2024.09.05"]
[EventType "team-tourn"]
[EventCountry "HUN"]
[SourceTitle "playchess.com"]
[Source "ChessBase"]
[SourceQuality "1"]
[WhiteTeam "Germany"]
[BlackTeam "Philippines"]
[WhiteTeamCountry "GER"]
[BlackTeamCountry "PHI"]
[TimeControl "40/5400+30:1800+30"]

{[%evp 9,43,40,28,45,53,33,39,35,34,24,21,24,25,0,22,0,0,0,0,0,17,17,18,11,15,-13,5,-3,27,18,43,34,531,526,493,479]} 1. c4 {[%emt 0:00:03]} Nf6 {[%emt 0:00:16][%cal Bg8f6,Bf6d5,Bd5c3][%mdl 32]} 2. Nf3 {[%emt 0:03:19]} g6 {[%emt 0:00:37]} 3. Nc3 {[%emt 0:01:48]} d5 {[%emt 0:00:30]} 4. cxd5 {[%emt 0:00:41]} Nxd5 {[%emt 0:00:08]} 5. h4 {[%emt 0:02:06]} Nxc3 {[%emt 0:08:29]} 6. bxc3 {[%emt 0:00:17]} h5 {[%emt 0:00:37]} 7. e4 {[%emt 0:07:35]} Bg7 {[%emt 0:00:28]} 8. Be2 {[%emt 0:04:03] White is slightly better.} c5 {[%emt 0:02:23]} 9. O-O {[%emt 0:11:55]} Nc6 {[%emt 0:01:05]} 10. Rb1 {[%emt 0:05:17]} O-O {[%emt 0:03:14]} 11. Qa4 {[%emt 0:04:55]} Qc7 {[%emt 0:15:47]} 12. Rd1 {[%emt 0:07:02]} Bg4 {[%emt 0:12:07]} 13. d4 {[%emt 0:04:16]} a6 {[%emt 0:07:31]} 14. dxc5 {[%emt 0:06:49]} Bxc3 {[%emt 0:10:11]} 15. Qb3 {[%emt 0:03:11][%csl LRb7,LRc3]} Bxf3 {[%emt 0:02:42]} 16. Bxf3 {[%emt 0:00:51]} Bd4 {[%emt 0:00:43]} 17. Bh6 {[%emt 0:05:49]} (17. Qxb7 {simplifies} Qxb7 18. Rxb7 Bxc5 19. Bg5) 17... Rfc8 {[%emt 0:04:02]} 18. e5 $132 {[%emt 0:06:07][%mdl 2048] White is fighting back} Bxe5 {[%emt 0:09:25]} (18... Qxe5 $5 19. Qxb7 Qf5 $11) 19. Qxb7 {[%emt 0:01:45]} Nd4 {[%emt 0:05:04]} 20. Be3 {[%emt 0:06:26] This pair of bishops is nice.} ({Not} 20. Qxa8 Rxa8 (20... Qxc5 $2 {too greedy.} 21. Qe4 $18) 21. Bxa8 Ne2+ (21... Qxc5 $2 22. Re1 $19) 22. Kf1 Nc3 $19) 20... Qxc5 {[%emt 0:02:43][%mdl 8192] [#]} ({Black should try} 20... Rab8 $14 21. Qxc7 Nxf3+ 22. gxf3 Bxc7) 21. Rbc1 $18 {[%emt 0:03:09]} Nxf3+ {[%emt 0:03:37]} 22. gxf3 {[%emt 0:00:15] Weighted Error Value: White=0.09 (flawless) /Black=0.43.  Loses game:     	---       	Black=1      Inaccurate:     	White=1     	Black=1      OK:         	White=7     	Black=8} 1-0

[Event "45th FIDE Olympiad 2024"]
[Site "Budapest"]
[Date "2024.09.12"]
[Round "2.31"]
[White "Lusako, Shedrack"]
[Black "Chan, Wang Ip Boris"]
[Result "1/2-1/2"]
[ECO "B50"]
[WhiteElo "1760"]
[BlackElo "2017"]
[Annotator "NA"]
[PlyCount "88"]
[EventDate "2024.09.05"]
[EventType "team-tourn"]
[EventCountry "HUN"]
[SourceTitle "playchess.com"]
[Source "ChessBase"]
[SourceQuality "1"]
[WhiteTeam "Tanzania"]
[BlackTeam "Hong Kong, China"]
[WhiteTeamCountry "TAN"]
[TimeControl "40/5400+30:1800+30"]

1. e4 c5 2. Nf3 d6 3. Bc4 Nf6 4. Nc3 e6 5. O-O a6 6. a4 Qc7 7. d3 Be7 8. Bf4 Nc6 9. h3 O-O 10. Re1 Nd7 11. Qe2 Bf6 12. Nd1 Nde5 13. Nxe5 Nxe5 14. Bxe5 Bxe5 15. c3 Bd7 16. Ne3 b5 17. axb5 axb5 18. Bb3 g6 19. Ng4 Bg7 20. Qf3 Bc6 21. Qf4 h5 22. Nf6+ Kh8 23. g4 hxg4 24. hxg4 Bxf6 25. Qxf6+ Kg8 26. Kg2 Qd8 27. Qf4 g5 28. Rxa8 Bxa8 29. Qe3 Kg7 30. Rh1 Rh8 31. Rxh8 Kxh8 32. Kg3 Qf6 33. f4 gxf4+ 34. Qxf4 Qe5 35. Qxe5+ dxe5 36. c4 b4 37. Ba4 Kg7 38. g5 Kg6 39. Kg4 Bb7 40. Bd7 Ba6 41. Be8 Bc8 42. Kh4 Bb7 43. Kg3 Bc8 44. Kg4 Bb7 1/2-1/2